bitfinex-derivatives/quotes_ETHF0:USTF0_20250810
["timestamp","ask_amount","ask_price","bid_price","bid_amount"]
[1754816567866,3.4859,4217.4,4217.3,1.3755]
[1754816568164,1.68804205,4219.1,4217.3,0.16888325]
[1754816568165,0.6215,4217.5,4217.3,0.16888325]
[1754816568369,4.7741,4217.4,4217.3,0.7515]
[1754816568560,4.7741,4217.4,4217.3,0.4742]
[1754816569158,4.7741,4217.4,4217.3,0.9353]
[1754816569769,4.7741,4217.4,4217.3,0.658]
[1754816569971,4.7741,4217.4,4217.3,1.7501]
[1754816571172,4.7741,4217.4,4217.3,2.0202]
[1754816571870,4.4987,4217.4,4217.3,2.0202]
[1754816572265,4.7741,4217.4,4217.3,1.7501]
[1754816573164,4.4987,4217.4,4217.3,1.1185]
[1754816573368,4.7741,4217.4,4217.3,1.5796]
[1754816573570,4.7741,4217.4,4217.3,1.7501]
[1754816573768,4.7741,4217.4,4217.3,0.9353]
[1754816573972,4.7741,4217.4,4217.3,0.4742]
[1754816574471,4.7741,4217.4,4217.3,1.7501]
[1754816575468,3.8293,4217.4,4217.3,1.0868]
[1754816575674,4.7741,4217.4,4217.3,1.7501]
[1754816576575,3.2078,4217.4,4217.3,1.7501]
[1754816576870,4.7741,4217.4,4217.3,1.7501]
[1754816577874,4.7741,4217.4,4217.3,1.1936]
[1754816578175,4.7741,4217.4,4217.3,1.7501]
[1754816578673,3.6564,4217.4,4217.3,1.3641]
[1754816578874,4.3116,4217.4,4217.3,2.0202]
[1754816579074,4.7741,4217.4,4217.3,2.0202]
[1754816579275,4.7741,4217.4,4217.3,1.3641]
[1754816579475,4.7741,4217.4,4217.3,1.7501]
[1754816579977,4.3116,4217.4,4217.3,2.0202]
[1754816580278,3.6564,4217.4,4217.3,2.0202]
[1754816581369,4.496,4217.4,4216.7,0.2773]
[1754816581569,1.5663,4216.9,4216.8,0.47426]
[1754816581776,1.5663,4216.9,4216.8,1.75016]
[1754816581979,1.5663,4216.9,4216.8,2.02026]
[1754816582275,1.1038,4216.9,4216.8,2.02026]
[1754816583275,1.1038,4216.9,4216.8,2.1930439]
[1754816583676,0.8399,4216.9,4216.8,2.1930439]
[1754816583875,0.4486,4216.9,4216.8,2.1930439]
[1754816584370,3.2078,4217.4,4216.8,1.7187839]
[1754816584575,4.7741,4217.4,4217.3,1.7501]
[1754816584777,4.7741,4217.4,4217.3,2.0202]
[1754816585578,4.7741,4217.4,4217.3,0.4742]
[1754816585778,1.5418,4217.3,4217.2,0.47421]
[1754816585979,1.5418,4217.2,4217.1,0.47422]
[1754816590986,1.5418,4217.2,4217.1,0.73462]
[1754816591388,1.5418,4217.2,4217.1,0.47422]
[1754816592179,1.5418,4217.2,4217.1,0.73462]
[1754816594087,1.5418,4217.2,4217.1,1.18092]
[1754816594388,1.5418,4217.2,4217.1,1.58512]
[1754816595784,1.207,4218.2,4217.1,1.58512]
[1754816595785,3.6526,4217.9,4217.8,0.47415]
[1754816595988,0.9251,4217.6,4217.4,0.47419]
[1754816596287,1.5418,4217.5,4217.4,0.47419]
[1754816598790,0.54195504,4217.8,4217.7,0.92046]
[1754816598992,1.5418,4217.8,4217.7,0.47416]
[1754816599196,1.15865504,4217.8,4217.6,0.47416]
[1754816599401,0.1719,4217.4,4217.3,0.4742]
[1754816599596,3.8245,4217.4,4217.3,1.2967]
[1754816599794,4.7496,4217.4,4217.3,1.5594]
[1754816599995,4.7496,4217.4,4217.3,1.2967]
[1754816600391,5.29166332,4217.4,4217.3,1.2967]
[1754816600592,4.7496,4217.4,4217.3,1.2967]
[1754816602599,5.29169448,4217.4,4217.3,1.2967]
[1754816602794,5.29169484,4217.4,4217.3,1.2967]
[1754816603296,4.7496,4217.4,4217.3,1.2967]
[1754816603694,5.29170991,4217.4,4217.3,1.2967]
[1754816604303,5.29170991,4217.4,4216.6,1.18571]
[1754816604304,5.11159991,4217.4,4217.1,0.47422]
[1754816604496,0.6167,4217.2,4217.1,0.73462]
[1754816604695,1.5418,4217.2,4217.1,1.58512]
[1754816605299,1.5418,4217.2,4216.3,3.2078]
[1754816605300,0.1743,4216.4,4216.3,3.86791]
[1754816605499,1.5418,4216.4,4216.3,2.2034923]
[1754816606003,1.5418,4216.4,4216.3,1.77101]
[1754816606396,1.5418,4216.4,4216.3,2.03371]
[1754816606700,1.271,4216.4,4216.3,2.03371]
[1754816607298,1.5418,4216.4,4216.3,2.03371]
[1754816609907,0.9251,4216.4,4215.7,0.6646]
[1754816610100,2.01611,4216.3,4216.2,0.1797]
[1754816610295,2.01615,4216.1,4215.7,0.47438]
[1754816610498,4.7496,4215.9,4215.8,1.1109]
[1754816610697,5.29170991,4215.9,4215.8,1.2967]
[1754816611395,1.5418,4215.8,4215.7,1.10648]
[1754816611598,1.5418,4215.8,4215.7,1.77108]
[1754816612799,1.5418,4215.8,4215.7,2.03378]
[1754816614001,1.5418,4215.3,4215.2,1.77114]
[1754816614404,1.5418,4215.3,4215.2,2.03384]
[1754816615808,1.271,4215.3,4215.2,2.03384]
[1754816618108,1.5276,4215.3,4215.2,0.8925]
[1754816618507,1.5276,4215.3,4214.4,4.3941]
[1754816618508,0.9397,4215.1,4214.5,0.6837]
[1754816618718,1.5479,4214.6,4214.5,2.04932]
[1754816619108,1.2913,4214.6,4214.5,2.04932]
[1754816619309,1.1131,4214.6,4214.5,2.04932]
[1754816621415,1.2913,4214.6,4214.5,2.04932]
[1754816621615,1.5479,4214.6,4214.5,2.04932]
[1754816625711,1.2913,4214.6,4214.5,2.04932]
[1754816626318,3.2078,4214.8,4214.7,2.04929]
[1754816630414,1.1131,4215.1,4215.0,2.04926]
[1754816630915,1.3697,4215.1,4215.0,2.04926]
[1754816631116,1.5479,4215.1,4215.0,2.04926]
[1754816631919,1.1131,4215.1,4215.0,2.04926]
[1754816632313,1.3697,4215.1,4215.0,2.04926]
[1754816633720,1.5479,4215.1,4215.0,2.04926]
[1754816634617,3.6378,4215.3,4215.2,1.10174]
[1754816634817,4.7557,4215.3,4215.2,2.04924]
[1754816635722,4.7557,4215.3,4215.2,1.78544]
[1754816635917,0.2631,4215.2,4215.1,0.47444]
[1754816636121,0.6082,4214.9,4214.8,0.75148]
[1754816636324,1.5479,4214.9,4214.8,0.47448]
[1754816637125,1.5479,4214.9,4214.8,0.75148]
[1754816637528,1.5479,4214.9,4214.8,0.47448]
[1754816637717,1.5479,4214.9,4214.8,1.78548]
[1754816641816,1.5479,4214.9,4214.7,0.47449]
[1754816642022,3.816,4214.8,4214.7,0.47449]
[1754816642219,0.47449,4214.7,4214.4,0.88122]
[1754816642423,1.5479,4214.5,4214.4,1.78552]
[1754816642627,1.3697,4214.7,4214.6,1.33789]
[1754816642820,1.5479,4214.7,4214.6,1.77229]
[1754816643022,3.2078,4214.8,4214.6,0.47449]
[1754816643226,1.5479,4214.7,4214.6,0.93119]
[1754816643426,1.5479,4214.7,4214.6,1.36559]
[1754816643830,1.5479,4214.7,4214.6,2.04929]
[1754816644330,1.5479,4214.7,4214.6,2.20944231]
[1754816646235,1.5479,4214.7,4214.6,2.20951986]
[1754816646426,3.2078,4214.8,4214.6,2.20951986]
[1754816646727,3.2078,4214.8,4214.7,1.73142986]
[1754816647227,3.9071,4214.8,4214.7,1.73142986]
[1754816647427,4.3112,4214.8,4214.7,1.73142986]
[1754816647827,3.9071,4214.8,4214.7,1.73142986]
[1754816648020,3.6433,4214.8,4214.7,1.73142986]
[1754816648531,3.2078,4214.8,4214.7,1.73142986]
[1754816649630,3.4734,4214.8,4214.7,1.73142986]
[1754816650126,3.2078,4214.8,4214.7,1.73142986]
[1754816650732,3.9071,4214.8,4214.7,1.45262986]
[1754816650933,4.3112,4214.8,4214.7,1.73142986]
[1754816652540,4.7471,4214.8,4214.7,1.06372986]
[1754816652837,4.7471,4214.8,4214.7,1.73142986]
[1754816653139,4.7471,4214.8,4214.7,0.16022986]
[1754816654934,4.7471,4214.8,4214.7,0.16009969]
[1754816655740,4.7471,4214.8,4214.7,0.43479969]
[1754816655932,4.7471,4214.8,4214.7,0.16009969]
[1754816656140,0.6032,4214.0,4213.9,1.10338]
[1754816656336,1.5393,4214.0,4213.9,1.92707993]
[1754816656540,1.5393,4214.0,4213.9,2.20587993]
[1754816658240,1.5393,4214.0,4213.9,1.92707993]
[1754816658646,1.5393,4214.0,4213.9,1.06359993]
[1754816658839,1.5393,4214.0,4213.9,0.9035]
[1754816659045,0.8688,4213.5,4213.4,1.0177]
[1754816659341,1.5393,4213.5,4213.4,1.92716495]
[1754816659742,1.5393,4213.5,4213.4,2.20596495]
[1754816660441,1.5393,4213.5,4213.4,1.92716495]
[1754816660635,0.47464,4213.4,4213.0,0.6636]
[1754816660840,1.5393,4213.1,4213.0,0.7179]
[1754816661333,0.2664,4212.8,4212.6,0.2747]
[1754816661538,4.7471,4212.9,4212.8,0.47471]
[1754816661944,4.7471,4212.9,4212.8,1.37821]
[1754816662149,4.7471,4212.9,4212.8,1.76711]
[1754816662341,4.7471,4212.9,4212.8,2.04591]
[1754816662543,3.6433,4212.9,4212.8,1.76711]
[1754816662848,3.2078,4212.9,4212.8,2.04591]
[1754816664840,3.6433,4213.4,4213.3,1.5712]
[1754816665042,3.2078,4213.4,4213.3,1.5712]
[1754816665238,0.47453,4214.4,4213.1,1.18668]
[1754816665239,3.2078,4213.9,4213.8,0.91779]
[1754816665548,3.6433,4213.9,4213.8,2.04579]
[1754816666946,0.2656,4213.9,4213.8,2.04579]
[1754816667137,0.4041,4214.1,4213.8,2.04579]
[1754816667342,3.6433,4214.4,4214.3,1.2924]
[1754816667546,4.7471,4214.4,4214.3,1.76694]
[1754816669049,3.9071,4214.4,4214.3,2.04574]
[1754816669244,4.7471,4214.4,4214.3,2.04574]
[1754816669450,4.3112,4214.4,4214.3,2.04574]
[1754816670048,4.7471,4214.4,4214.3,2.04574]
[1754816670252,4.7471,4214.4,4214.3,1.19244]
[1754816670841,0.6705,4214.3,4213.5,0.2747]
[1754816671046,1.5393,4213.7,4213.6,0.47462]
[1754816672451,1.5393,4213.7,4213.6,0.74932]
[1754816673056,1.5393,4213.7,4213.6,0.92102]
[1754816673452,1.5393,4213.7,4213.6,1.37812]
[1754816673649,1.5393,4213.7,4213.6,1.76702]
[1754816674248,1.5393,4213.7,4213.6,2.04582]
[1754816676955,1.5393,4213.7,4213.6,1.76702]
[1754816677457,1.5393,4213.7,4213.5,0.47462]
[1754816677652,1.1235,4213.6,4213.5,0.47462]
[1754816677955,1.5739,4213.6,4213.5,0.47462]
[1754816678855,1.5739,4213.6,4213.5,1.36382]
[1754816679055,1.5739,4213.6,4213.5,1.74742]
[1754816679554,1.2941,4213.6,4213.5,2.02812]
[1754816679755,1.5739,4213.6,4213.5,2.02812]
[1754816680859,1.1235,4213.6,4213.5,2.02812]
[1754816681262,0.7085,4213.6,4213.5,2.02812]
[1754816681459,4.7817,4213.9,4213.8,2.02809]
[1754816681759,4.7817,4213.9,4213.8,1.74739]
[1754816681960,4.7817,4213.9,4213.8,2.02809]
[1754816684763,4.7817,4213.9,4213.8,1.74739]
[1754816688565,4.7817,4213.9,4213.7,0.4746]
[1754816688760,1.5739,4213.8,4213.7,0.4746]
[1754816689271,1.5739,4213.8,4213.7,0.9334]
[1754816689464,1.5739,4213.8,4213.7,1.5709]
[1754816689859,1.5739,4213.8,4213.7,1.7474]
[1754816691062,2.04849,4213.8,4213.7,1.7474]
[1754816691360,0.2562,4213.5,4213.4,0.915]
[1754816691567,1.5739,4213.5,4213.4,1.71365637]
[1754816692276,1.5739,4213.5,4213.4,2.18829637]
[1754816692774,1.5739,4213.5,4213.4,2.02814]
[1754816692976,1.5739,4213.5,4213.4,2.18830752]
[1754816694674,1.5739,4213.5,4213.4,1.07000752]
[1754816694974,1.5739,4213.5,4213.4,1.90760752]
[1754816695372,1.5739,4213.5,4213.4,2.18830752]
[1754816698284,1.5739,4213.5,4213.4,1.90760752]
[1754816698676,1.5739,4213.5,4213.4,1.52655407]
[1754816699172,1.5739,4213.5,4213.4,1.91015407]
[1754816700282,1.5739,4213.5,4213.4,2.19085407]
[1754816701884,0.54222876,4213.8,4213.7,2.0281]
[1754816702089,3.2078,4213.9,4213.7,1.24901407]
[1754816702380,0.54222876,4214.3,4214.2,2.02805]
[1754816702587,0.54222876,4214.4,4214.2,1.24896407]
[1754816702882,0.99452876,4214.4,4214.3,1.71621407]
[1754816703283,0.99452876,4214.4,4214.3,1.5535]
[1754816703488,0.54222876,4214.4,4214.3,1.5535]
[1754816703784,3.2078,4214.5,4214.4,1.2996]
[1754816703977,3.2078,4214.5,4214.4,1.5535]
[1754816705783,3.4681,4214.5,4214.4,1.5535]
[1754816706085,3.6407,4214.5,4214.4,1.5535]
[1754816706787,0.2603,4215.2,4215.1,0.2798]
[1754816707088,0.2603,4215.2,4215.1,1.1395]
[1754816707277,0.7014,4215.2,4215.1,0.726]
[1754816707482,0.8858,4215.2,4215.1,1.1395]
[1754816707686,0.7014,4215.2,4215.1,1.1395]
[1754816708687,0.2603,4215.2,4215.1,1.1395]
[1754816708883,3.2078,4215.6,4215.1,0.6756]
[1754816709188,4.3301,4215.6,4215.5,1.1395]
[1754816709586,4.3301,4215.6,4215.5,1.6139]
[1754816710090,4.5145,4215.6,4215.5,1.6139]
[1754816710289,4.7697,4215.6,4215.5,1.6139]
[1754816710979,3.2078,4215.6,4215.4,0.4639]
[1754816711179,0.2603,4216.0,4215.9,1.61386]
[1754816711987,0.4329,4216.6,4216.5,0.726]
[1754816712188,1.1223,4216.6,4216.5,1.1395]
[1754816712591,1.1223,4216.6,4216.5,1.61379]
[1754816712889,0.4329,4216.6,4216.5,1.61379]
[1754816715195,1.3067,4216.6,4216.5,1.61379]
[1754816715492,1.5619,4216.6,4216.5,1.61379]
[1754816715795,1.3067,4216.6,4216.5,1.61379]
[1754816716093,1.1223,4216.6,4216.5,1.61379]
[1754816717294,1.5619,4216.6,4216.5,1.61379]
[1754816717887,1.5619,4216.6,4216.5,1.1395]
[1754816719493,1.5619,4216.6,4216.5,0.4462]
[1754816719694,1.5619,4216.6,4216.5,0.8597]
[1754816719995,1.5619,4216.6,4216.5,1.1395]
[1754816720389,3.2078,4216.7,4215.8,3.2078]
[1754816720390,0.6255,4216.4,4216.3,0.92051]
[1754816720689,0.6255,4215.9,4215.6,0.47439]
[1754816720894,1.5619,4215.8,4215.7,0.4462]
[1754816721093,1.5619,4215.8,4215.7,1.1395]
[1754816721693,0.2603,4215.8,4215.7,1.1395]
[1754816722294,0.2603,4216.3,4216.2,1.1395]
[1754816722496,0.2603,4216.3,4216.2,1.61382]
[1754816724690,1.1223,4216.3,4216.2,1.61382]
[1754816726087,0.7014,4216.3,4216.2,1.61382]
[1754816728293,1.3067,4216.3,4216.2,1.61382]
[1754816728493,1.5619,4216.3,4216.2,1.61382]
[1754816729787,1.5619,4216.5,4216.4,1.1395]
[1754816730394,0.9364,4216.4,4215.9,0.47436]
[1754816730597,1.5619,4216.0,4215.9,0.92056]
[1754816730785,1.5619,4216.0,4215.9,1.61386]
[1754816730991,0.7014,4216.0,4215.9,1.61386]
[1754816731391,1.5619,4215.4,4215.3,1.1395]
[1754816731995,0.4209,4216.4,4216.0,0.47435]
[1754816732199,1.3016,4216.4,4216.3,0.4639]
[1754816732599,1.5619,4216.4,4216.3,0.4639]
[1754816732902,1.5619,4216.4,4216.3,1.1395]
[1754816733097,0.4329,4216.4,4216.3,1.1395]
[1754816733697,0.7014,4216.4,4216.3,1.1395]
[1754816733999,1.1223,4216.4,4216.3,1.1395]
[1754816734799,1.5619,4216.4,4216.3,1.1395]
[1754816736495,1.5619,4216.4,4216.2,0.47432]
[1754816736704,1.5436,4215.8,4215.7,3.94998]
[1754816737002,1.5436,4215.8,4215.7,4.27159068]
[1754816737202,1.5436,4215.8,4215.7,3.79721068]
[1754816737503,1.18612,4215.1,4214.2,0.2598]
[1754816737800,3.2078,4214.6,4214.5,1.2852]
[1754816738101,3.2078,4214.6,4214.1,3.2078]
[1754816738102,3.2078,4215.1,4215.0,1.5403]
[1754816740600,3.2078,4215.1,4215.0,1.1412]
[1754816742801,3.2078,4215.1,4214.9,0.2598]
[1754816743001,3.2078,4215.1,4214.6,0.2598]
[1754816743203,3.2078,4215.1,4214.5,0.8814]
[1754816743403,0.0023,4214.7,4214.6,0.2598]
[1754816743598,0.0032,4214.7,4214.6,0.7112]
[1754816743804,0.0009,4214.7,4214.6,1.5403]
[1754816744002,0.0032,4214.7,4214.6,2.0148]
[1754816746006,3.2078,4215.1,4215.0,0.6136]
[1754816746302,3.211,4215.1,4215.0,0.2598]
[1754816746703,0.47446,4215.0,4214.7,0.2598]
[1754816746906,0.0023,4214.8,4214.7,0.5276]
[1754816747100,0.0032,4214.8,4214.7,0.5276]
[1754816747500,0.0032,4214.8,4214.7,0.7112]
[1754816747705,0.0009,4214.4,4214.3,0.47453]
[1754816747906,0.0032,4214.4,4214.3,0.73433]
[1754816748106,3.68226,4215.1,4214.8,0.1836]
[1754816748307,3.68226,4215.1,4214.9,1.5403]
[1754816748308,0.0009,4215.0,4214.9,1.5403]
[1754816748701,0.0023,4215.0,4214.9,1.5403]
[1754816748902,0.0032,4215.0,4214.9,1.5403]
[1754816749301,0.0032,4215.0,4214.9,1.1412]
[1754816750213,0.0032,4215.0,4214.9,0.2598]
[1754816750912,0.47447,4214.9,4214.6,0.2678]
[1754816751115,0.0032,4214.7,4214.6,0.2598]
[1754816752110,0.0032,4214.7,4214.6,0.5276]
[1754816752316,0.0032,4214.7,4214.6,0.7112]
[1754816752515,0.47448,4214.9,4214.7,0.47449]
[1754816752710,0.47678,4214.9,4214.8,1.5403]
[1754816753310,0.47768,4214.9,4214.8,1.5403]
[1754816753706,0.0032,4214.9,4214.8,1.5403]
[1754816756419,3.68225,4215.1,4214.4,0.8861]
[1754816756420,0.0018,4214.5,4214.4,0.8861]
[1754816756716,0.0032,4214.5,4214.4,0.8861]
[1754816757919,0.0032,4214.5,4214.4,1.1412]
[1754816758309,0.0032,4214.5,4214.4,0.2598]
[1754816758514,0.0032,4214.5,4214.4,0.7112]
[1754816758915,0.0032,4214.5,4214.4,1.1412]
[1754816759315,0.0032,4214.5,4214.4,1.5403]
[1754816759718,0.0032,4214.5,4214.4,2.01483]
[1754816759919,0.0032,4214.5,4214.4,1.5403]
[1754816760928,0.0032,4214.5,4214.0,0.74237]
[1754816761224,0.0032,4214.2,4214.1,0.2598]
[1754816761819,0.0032,4214.2,4214.1,1.1412]
[1754816762026,3.68233,4214.4,4214.3,0.6136]
[1754816762219,3.2078,4214.4,4214.3,1.5403]
[1754816762421,3.2078,4214.9,4214.8,1.5403]
[1754816766826,3.8802,4214.9,4214.8,1.5403]
[1754816767026,3.8811,4214.9,4214.8,1.1412]
[1754816767223,3.8811,4214.9,4214.8,0.623]
[1754816767423,3.8811,4214.9,4214.8,1.5725]
[1754816770236,3.4866,4214.9,4214.8,1.5725]
[1754816770439,3.2078,4214.9,4214.8,1.5725]
[1754816770937,3.6014,4214.9,4214.8,1.5725]
[1754816771237,3.8733,4214.9,4214.8,1.5725]
[1754816771434,3.8743,4214.9,4214.8,1.5725]
[1754816771837,3.4797,4214.9,4214.8,1.5725]
[1754816772335,3.8733,4214.9,4214.8,1.5725]
[1754816772535,3.2078,4214.9,4214.8,1.5725]
[1754816774533,0.6665,4215.2,4215.1,0.6322]
[1754816774739,0.6665,4215.2,4215.1,1.5657]
[1754816774939,0.47443,4215.3,4215.2,0.9335]
[1754816774940,0.2719,4215.3,4215.2,0.9335]
[1754816775240,0.2729,4215.3,4215.2,0.6322]
[1754816775641,0.6665,4215.3,4215.2,1.5657]
[1754816778347,0.6665,4215.3,4215.2,1.1555]
[1754816778647,0.6665,4215.3,4215.2,0.253]
[1754816779438,0.6665,4215.3,4215.2,0.8865]
[1754816781048,0.2729,4214.9,4214.8,0.3632]
[1754816781251,4.34877,4214.9,4214.8,0.8865]
[1754816781444,4.34877,4214.9,4214.8,0.7085]
[1754816781644,4.34877,4214.9,4214.8,1.5657]
[1754816781941,4.34877,4214.9,4214.8,0.253]
[1754816782252,0.6665,4214.5,4214.4,0.253]
[1754816783250,0.6665,4214.5,4214.4,0.8865]
[1754816784351,0.6665,4214.5,4214.4,1.1555]
[1754816784546,3.75896328,4214.9,4214.4,1.5657]
[1754816784751,3.2078,4214.9,4214.8,1.5657]
[1754816787446,3.6014,4214.9,4214.8,1.5657]
[1754816787647,3.2078,4214.9,4214.8,1.5657]
[1754816788453,2.9268,4214.9,4214.8,1.5657]
[1754816789446,3.2078,4215.4,4215.3,2.04012]
[1754816792256,3.2078,4215.9,4215.8,2.04007]
[1754816795953,0.8441,4216.5,4216.4,0.4743]
[1754816796158,0.8441,4216.5,4216.4,2.0053]
[1754816796768,1.1215,4216.5,4216.4,2.0053]
[1754816797653,0.8441,4216.5,4216.4,2.0053]
[1754816799455,3.2078,4216.6,4216.4,2.0053]
[1754816799762,3.2078,4216.6,4216.5,1.0915]
[1754816799959,3.2078,4216.6,4216.5,1.531]
[1754816803966,3.6206,4216.6,4216.5,1.531]
[1754816806661,3.7954,4216.6,4216.5,1.531]
[1754816806867,4.0649,4216.6,4216.5,1.531]
[1754816807060,0.8571,4216.6,4216.5,1.531]
[1754816808869,0.8571,4216.6,4216.5,1.1315]
[1754816809068,0.8571,4216.6,4216.0,1.531]
[1754816809069,1.1345,4216.1,4216.0,1.531]
[1754816809958,3.2078,4216.6,4216.0,1.531]
[1754816809959,3.2078,4216.6,4216.5,0.47429]
[1754816810164,4.0649,4216.6,4216.5,2.00529]
[1754816810364,4.3423,4216.6,4216.5,2.00529]
[1754816811572,1.1345,4216.5,4216.4,0.9819]
[1754816812071,0.8571,4217.5,4217.4,1.09809]
[1754816812272,1.1345,4217.5,4217.4,0.5076]
[1754816812462,1.1345,4217.3,4217.2,0.72801]
[1754816812668,1.1345,4217.3,4217.2,0.47421]
[1754816812870,1.1345,4217.0,4216.9,0.47424]
[1754816813265,1.1345,4217.0,4216.9,0.98184]
[1754816814670,1.1345,4217.0,4216.9,1.34314]
[1754816815374,1.1345,4217.0,4216.9,0.6845]
[1754816815573,1.1345,4217.0,4216.9,0.5076]
[1754816815868,1.1345,4216.8,4216.7,0.98187]
[1754816816271,1.1345,4216.8,4216.7,1.60577]
[1754816816471,1.1345,4216.8,4216.7,2.00527]
[1754816818571,1.1345,4216.8,4216.6,0.47427]
[1754816818772,0.8571,4216.0,4215.9,1.08946]
[1754816818977,0.4443,4216.0,4215.8,3.2078]
[1754816819166,1.1345,4215.9,4215.8,3.2078]
[1754816819370,0.47434,4216.1,4215.9,4.43559329]
[1754816819566,0.47434,4216.1,4216.0,0.2538]
[1754816819771,0.47433,4216.2,4215.9,4.43559329]
[1754816819972,0.47433,4216.2,4216.1,0.2538]
[1754816820370,3.2078,4216.5,4216.2,3.96126329]
[1754816820572,0.4743,4216.4,4216.2,3.96126329]
[1754816821479,3.2078,4216.5,4216.4,3.96126329]
[1754816822176,0.47437,4215.8,4215.7,0.2538]
[1754816822377,3.2078,4215.8,4215.7,0.2538]
[1754816823073,3.2078,4215.8,4215.7,0.5076]
[1754816823275,3.2078,4215.8,4215.7,1.531]
[1754816827375,3.2078,4215.8,4215.7,1.1315]
[1754816827577,9.2078,4215.8,4215.1,0.2587]
[1754816827782,3.2078,4215.3,4215.2,0.5164]
[1754816828078,3.2078,4215.3,4215.2,0.2587]
[1754816828583,3.2078,4215.3,4215.2,0.6863]
[1754816829077,3.2078,4215.3,4215.2,1.55]
[1754816831272,3.2078,4215.3,4215.2,1.1313]
[1754816832485,3.2078,4215.3,4215.2,1.55]
[1754816839488,3.2078,4215.3,4215.2,0.2587]
[1754816839687,0.47451,4214.6,4214.5,1.55]
[1754816839886,3.2078,4214.6,4214.5,1.55]
[1754816841792,2.0843,4214.6,4214.5,1.55]
[1754816841994,1.1012,4214.6,4214.5,1.55]
[1754816842597,4.3259,4215.5,4215.4,0.8555]
[1754816842782,3.2078,4215.5,4215.4,1.32991]
[1754816844084,3.6623,4215.5,4215.4,1.32991]
[1754816844289,4.3259,4215.5,4215.4,1.32991]
[1754816845294,0.4545,4215.0,4214.9,1.07127]
[1754816845494,1.1181,4215.0,4214.9,1.07127]
[1754816845994,1.1181,4215.0,4214.9,1.32997]
[1754816846595,3.2078,4215.5,4215.4,1.32991]
[1754816846992,3.6623,4215.5,4215.4,1.32991]
[1754816847191,1.1181,4215.5,4215.4,1.32991]
[1754816848493,1.2976,4215.5,4215.4,1.32991]
[1754816848700,1.5673,4215.5,4215.4,0.8555]
[1754816850093,0.47441,4215.4,4215.3,3.2078]
[1754816850400,1.5673,4215.4,4215.3,3.2078]
[1754816850798,1.5673,4215.4,4215.3,4.0633]
[1754816852501,2.04171,4215.4,4215.3,3.8046]
[1754816854002,1.5673,4215.4,4215.3,3.8046]
[1754816854195,1.5673,4215.4,4215.3,4.0633]
[1754816854501,2.04171,4215.4,4215.3,4.0633]
[1754816854697,1.5673,4215.4,4215.3,4.0633]
[1754816854898,1.2976,4215.4,4215.3,4.0633]
[1754816855300,1.5605,4215.4,4215.3,4.0633]
[1754816859107,1.2976,4215.4,4215.3,4.0633]
[1754816859308,1.296,4215.4,4215.3,4.0633]
[1754816859509,1.5589,4215.4,4215.3,4.0633]
[1754816861208,2.03331,4215.4,4215.3,4.0633]
[1754816861811,1.11114,4215.2,4215.1,0.1693]
[1754816862000,1.11114,4215.2,4215.0,0.256]
[1754816862507,1.571,4215.1,4215.0,0.5965]
[1754816862904,1.571,4215.1,4215.0,0.8526]
[1754816863506,0.47438,4215.7,4215.1,0.256]
[1754816863705,2.04538,4215.7,4215.6,0.8526]
[1754816863903,0.55095676,4215.9,4215.6,0.8526]
[1754816863904,0.55095676,4215.9,4215.7,0.73038]
[1754816864106,0.1818,4216.3,4216.2,0.8526]
[1754816864408,0.4588,4216.3,4216.2,0.8526]
[1754816864713,3.6666,4216.5,4216.4,0.8526]
[1754816864910,4.338,4216.5,4216.4,0.8526]
[1754816865110,4.7788,4216.5,4216.4,0.8526]
[1754816865411,4.7788,4216.5,4216.4,0.5965]
[1754816866810,5.25309,4216.5,4216.2,0.47432]
[1754816867012,1.571,4216.3,4216.2,1.32692]
[1754816867806,1.3081,4216.3,4216.2,1.32692]
[1754816868212,1.571,4216.3,4216.2,0.8526]
[1754816869110,1.571,4216.3,4216.2,0.5965]
[1754816869413,1.571,4216.3,4216.2,0.8526]
[1754816870802,0.6367,4216.3,4216.0,0.47434]
[1754816871010,0.6367,4216.1,4215.9,0.256]
[1754816871211,1.571,4216.0,4215.9,0.5965]
[1754816871707,1.571,4216.0,4215.8,3.2078]
[1754816872015,1.571,4215.9,4215.8,3.379]
[1754816872204,1.571,4215.9,4215.8,3.8043]
[1754816873014,1.571,4215.9,4215.8,4.0604]
[1754816874015,1.571,4215.9,4215.8,3.8043]
[1754816874217,1.571,4215.9,4215.8,3.2078]
[1754816875214,0.6367,4215.6,4215.5,0.5966]
[1754816875512,1.571,4215.6,4215.5,0.5966]
[1754816875812,0.6367,4215.5,4215.4,0.5965]
[1754816876311,0.6367,4215.5,4215.4,0.8526]
[1754816876512,1.571,4215.5,4215.4,0.8526]
[1754816878011,1.3081,4215.1,4215.0,0.5966]
[1754816878212,1.571,4215.1,4215.0,0.8526]
[1754816880415,1.571,4214.9,4214.8,3.3771]
[1754816880614,1.571,4214.9,4214.8,3.8043]
[1754816880807,0.6367,4214.6,4214.5,0.3405]
[1754816881012,1.571,4214.6,4214.5,0.3405]
[1754816881214,1.73643106,4215.5,4214.3,3.2078]
[1754816881215,1.571,4214.4,4214.3,3.2078]
[1754816881621,1.571,4214.1,4214.0,0.5965]
[1754816881817,1.571,4214.1,4214.0,0.8526]
[1754816885124,1.571,4214.1,4214.0,0.5965]
[1754816885316,1.571,4214.1,4214.0,0.8509]
[1754816893622,0.8668,4214.5,4214.4,1.35253]